bitfinex-derivatives/quotes_BNBF0:USTF0_20250101
["timestamp","ask_amount","ask_price","bid_price","bid_amount"]
[1735766886702,0.89104156,707.53,707.09,1.05687943]
[1735766886903,0.89104156,707.52,707.11,1.05687943]
[1735766887206,0.89104156,707.51,707.11,1.05687943]
[1735766887406,0.89104156,707.5,707.11,1.05687943]
[1735766887703,0.891084,707.49,707.11,1.05687943]
[1735766888008,0.733,707.56,707.11,1.05687943]
[1735766888204,0.89114024,707.55,707.14,1.05687943]
[1735766888508,0.8911777,707.54,707.14,1.05687943]
[1735766888707,0.8911777,707.53,707.14,1.05687943]
[1735766888906,0.733,707.56,707.14,1.05687943]
[1735766889101,0.89119431,707.55,707.17,1.05687943]
[1735766889302,0.89119431,707.54,707.17,1.05687943]
[1735766889503,0.89119431,707.53,707.17,1.05687943]
[1735766889811,0.89119431,707.52,707.17,1.05687943]
[1735766890002,1.47627044,707.81,707.17,1.05687943]
[1735766890311,0.8910305,707.8,707.17,1.05687943]
[1735766890509,0.8910305,707.79,707.18,1.05687943]
[1735766890710,0.8910305,707.78,707.18,1.05687943]
[1735766890913,0.8910305,707.77,707.18,1.05687943]
[1735766891113,1.6230305,707.76,707.18,1.05687943]
[1735766891304,0.8910305,707.75,707.18,1.05687943]
[1735766891506,0.89107919,707.74,707.18,1.05687943]
[1735766891710,0.89107919,707.73,707.18,1.05687943]
[1735766892011,0.732,707.76,707.18,1.05687943]
[1735766892209,0.89108843,707.75,707.17,1.05687943]
[1735766892404,0.89108843,707.74,707.17,1.05687943]
[1735766892603,0.89108843,707.73,707.17,1.05687943]
[1735766892805,0.89108843,707.72,707.17,1.05687943]
[1735766893021,0.89108843,707.71,707.17,1.05687943]
[1735766893211,0.89108843,707.7,707.17,1.05687943]
[1735766893411,0.89108843,707.7,706.47,2.1577955]
[1735766893412,0.89108843,707.69,707.22,1.05687943]
[1735766893604,0.89108843,707.68,707.22,1.05687943]
[1735766893808,0.89108843,707.67,707.22,1.05687943]
[1735766894007,0.89108843,707.66,707.22,1.05687943]
[1735766894204,0.89108843,707.65,707.22,1.05687943]
[1735766894405,0.732,707.76,707.22,1.05687943]
[1735766894612,0.8912,707.75,707.24,1.05687943]
[1735766894807,0.8912,707.74,707.24,1.05687943]
[1735766895005,0.8912,707.73,707.24,1.05687943]
[1735766895205,0.8912,707.72,707.24,1.05687943]
[1735766895509,0.8912,707.71,707.24,1.05687943]
[1735766895710,0.8912,707.7,707.24,1.05687943]
[1735766895911,0.8912,707.7,706.61,2.1577955]
[1735766895912,0.8912,707.69,707.23,1.05687943]
[1735766896210,0.8912,707.68,707.23,1.05687943]
[1735766896409,0.8912,707.67,707.23,1.05687943]
[1735766896613,0.8912,707.66,707.23,1.05687943]
[1735766896811,0.8912,707.65,707.23,1.05687943]
[1735766897008,0.8912,707.64,707.19,1.05687943]
[1735766897212,0.8912,707.63,707.19,1.05687943]
[1735766897413,0.8912,707.62,707.19,1.05687943]
[1735766897612,0.8912,707.61,707.19,1.05687943]
[1735766897812,0.8912,707.6,707.19,1.05687943]
[1735766898014,0.8912,707.59,707.19,1.05687943]
[1735766898213,0.732,707.76,707.19,1.05687943]
[1735766898214,0.8912,707.58,707.19,1.05687943]
[1735766898413,0.8912,707.57,707.19,1.05687943]
[1735766898608,0.8912,707.56,707.19,1.05687943]
[1735766898815,0.8912,707.55,707.19,1.05687943]
[1735766899115,0.8912,707.54,707.19,1.05687943]
[1735766899315,0.8912,707.54,706.55,2.1577955]
[1735766899316,0.8912,707.53,707.24,1.05687943]
[1735766899613,0.8912,707.52,707.24,1.05687943]
[1735766899814,0.8912,707.51,707.24,1.05687943]
[1735766900015,0.8912,707.5,707.24,1.05687943]
[1735766900222,0.8912,707.49,707.24,1.05687943]
[1735766900415,0.8912,707.48,707.24,1.05687943]
[1735766900618,0.8912,707.47,707.24,1.05687943]
[1735766900918,0.732,707.76,707.24,1.05687943]
[1735766901109,0.89157778,707.75,707.24,1.05687943]
[1735766901311,0.89157778,707.74,707.24,1.05687943]
[1735766901515,0.89157778,707.73,707.22,1.05687943]
[1735766901717,0.89157778,707.72,707.22,1.05687943]
[1735766901917,0.89157778,707.71,707.22,1.05687943]
[1735766902118,0.89157778,707.7,707.22,1.05687943]
[1735766902317,0.89157778,707.69,707.22,1.05687943]
[1735766902513,0.89153834,707.68,707.22,1.05687943]
[1735766902713,0.732,707.76,707.22,1.05687943]
[1735766902714,0.89153834,707.67,707.22,1.05687943]
[1735766902913,0.89153834,707.66,707.22,1.05687943]
[1735766903116,0.89153834,707.65,707.22,1.05687943]
[1735766903312,0.89153834,707.64,707.22,1.05687943]
[1735766903512,0.89153834,707.63,707.22,1.05687943]
[1735766903818,0.89153834,707.62,707.22,1.05687943]
[1735766904014,0.732,707.76,707.22,1.05687943]
[1735766904015,0.89153834,707.61,707.22,1.05687943]
[1735766904216,0.89153834,707.6,707.23,1.05687943]
[1735766904417,0.89153834,707.59,707.23,1.05687943]
[1735766904714,0.89153834,707.58,707.23,1.05687943]
[1735766904912,0.89153834,707.57,707.23,1.05687943]
[1735766905114,0.89153834,707.56,707.23,1.05687943]
[1735766905317,0.732,707.76,707.22,1.05687943]
[1735766905318,0.89153834,707.55,707.22,1.05687943]
[1735766905514,0.89153834,707.54,707.22,1.05687943]
[1735766905718,0.89153834,707.53,707.22,1.05687943]
[1735766905921,0.89153834,707.52,707.22,1.05687943]
[1735766906223,0.89153834,707.51,707.22,1.05687943]
[1735766906519,0.732,707.76,707.23,1.05687943]
[1735766906818,0.89160862,707.75,707.23,1.05687943]
[1735766907015,0.89160862,707.74,707.23,1.05687943]
[1735766907221,0.89160862,707.73,707.23,1.05687943]
[1735766907414,0.89160862,707.72,707.23,1.05687943]
[1735766907616,0.89160862,707.71,707.19,1.05687943]
[1735766907814,0.89160862,707.7,707.19,1.05687943]
[1735766908025,0.89160862,707.69,707.19,1.05687943]
[1735766908324,1.62460862,707.68,707.19,1.05687943]
[1735766908524,0.89160862,707.67,707.19,1.05687943]
[1735766908726,0.89160862,707.66,707.17,1.05687943]
[1735766908926,0.89160862,707.65,707.17,1.05687943]
[1735766909126,0.89160862,707.64,707.17,1.05687943]
[1735766909326,0.89160862,707.63,707.17,1.05687943]
[1735766909521,0.89160862,707.62,707.17,1.05687943]
[1735766909724,0.89160862,707.61,707.17,1.05687943]
[1735766909921,0.89160862,707.61,706.82,1.05687943]
[1735766909922,0.89160862,707.6,707.16,1.05687943]
[1735766910222,0.733,707.68,707.16,1.05687943]
[1735766910223,0.89160862,707.59,707.16,1.05687943]
[1735766910428,0.89160862,707.58,707.16,1.05687943]
[1735766910624,0.89160862,707.57,707.16,1.05687943]
[1735766910927,0.89160862,707.56,707.16,1.05687943]
[1735766911131,0.89160862,707.55,707.11,1.05687943]
[1735766911422,0.89160862,707.54,707.11,1.05687943]
[1735766911624,0.89160862,707.53,707.11,1.05687943]
[1735766911825,0.89160862,707.52,707.11,1.05687943]
[1735766912025,0.89160862,707.51,707.11,1.05687943]
[1735766912226,0.89160862,707.5,707.11,1.05687943]
[1735766912425,0.89160862,707.49,707.11,1.05687943]
[1735766912729,0.89160862,707.48,707.04,1.05687943]
[1735766913028,0.89160862,707.47,707.04,1.05687943]
[1735766913227,0.89160862,707.46,707.04,1.05687943]
[1735766913428,0.89160862,707.45,707.04,1.05687943]
[1735766913627,0.89160862,707.44,707.04,1.05687943]
[1735766913826,0.89160862,707.43,707.04,1.05687943]
[1735766914028,0.89160862,707.42,707.05,1.05687943]
[1735766914226,0.89160862,707.41,707.05,1.05687943]
[1735766914428,0.89160862,707.4,707.05,1.05687943]
[1735766914626,0.733,707.68,707.05,1.05687943]
[1735766914829,0.89215077,707.67,707.05,1.05687943]
[1735766915036,0.89215077,707.66,707.05,1.05687943]
[1735766915225,0.733,707.68,707.05,1.05687943]
[1735766915226,0.89215077,707.65,707.05,1.05687943]
[1735766915426,0.89215077,707.64,707.05,1.05687943]
[1735766915631,0.89215077,707.63,707.05,1.05687943]
[1735766915932,0.89215977,707.62,707.06,1.05687943]
[1735766916128,0.733,707.68,707.06,1.05687943]
[1735766916129,0.89215977,707.61,707.06,1.05687943]
[1735766916328,0.89215977,707.6,707.06,1.05687943]
[1735766916529,0.89215977,707.59,707.06,1.05687943]
[1735766916729,0.89215977,707.58,707.06,1.05687943]
[1735766916929,0.89215977,707.57,707.06,1.05687943]
[1735766917229,0.89215977,707.56,707.06,1.05687943]
[1735766917423,0.89215977,707.55,707.06,1.05687943]
[1735766917627,0.89215977,707.54,707.06,1.05687943]
[1735766917824,0.89215977,707.53,707.06,1.05687943]
[1735766918028,0.89215977,707.52,707.06,1.05687943]
[1735766918230,0.89215977,707.51,707.11,1.05687943]
[1735766918529,0.89215977,707.5,707.11,1.05687943]
[1735766918726,0.733,707.68,707.11,1.05687943]
[1735766918931,0.89235349,707.67,707.11,1.05687943]
[1735766919131,0.89235349,707.66,707.2,1.05687943]
[1735766919432,0.89239284,707.65,707.2,1.05687943]
[1735766919631,0.89239284,707.64,707.2,1.05687943]
[1735766919826,0.89239284,707.63,707.2,1.05687943]
[1735766920032,0.89239284,707.62,707.2,1.05687943]
[1735766920226,0.89239284,707.61,707.2,1.05687943]
[1735766920430,0.89239284,707.6,707.22,1.05687943]
[1735766920732,0.89239284,707.59,707.22,1.05687943]
[1735766920931,0.733,707.68,707.22,1.05687943]
[1735766921133,0.89234944,707.67,707.22,1.05687943]
[1735766921329,0.89234944,707.66,707.22,1.05687943]
[1735766921525,0.89234944,707.65,707.23,1.05687943]
[1735766921727,0.89234944,707.64,707.23,1.05687943]
[1735766921929,0.89237538,707.63,707.23,1.05687943]
[1735766922233,0.89237538,707.62,707.23,1.05687943]
[1735766922533,0.89237538,707.61,707.3,1.05687943]
[1735766922727,0.89237538,707.6,707.3,1.05687943]
[1735766923027,0.89237538,707.59,707.3,1.05687943]
[1735766923225,0.89237538,707.58,707.3,1.05687943]
[1735766923430,0.89237538,707.57,707.29,1.05687943]
[1735766923630,0.89237538,707.56,707.29,1.05687943]
[1735766923829,0.89237538,707.55,707.29,1.05687943]
[1735766924130,0.89237538,707.54,707.29,1.05687943]
[1735766924324,0.89237538,707.53,707.29,1.05687943]
[1735766924530,0.733,707.68,707.29,1.05687943]
[1735766924736,0.89226089,707.67,707.29,1.05687943]
[1735766925033,0.89225244,707.66,707.29,1.05687943]
[1735766925234,0.89225244,707.65,707.29,1.05687943]
[1735766925434,0.89225244,707.64,707.28,1.05687943]
[1735766925634,0.89225244,707.63,707.28,1.05687943]
[1735766925827,0.89225244,707.62,707.28,1.05687943]
[1735766926027,0.89225244,707.61,707.28,1.05687943]
[1735766926229,0.89225244,707.6,707.28,1.05687943]
[1735766926433,0.89225244,707.59,707.28,1.05687943]
[1735766926633,0.89225244,707.58,707.28,1.05687943]
[1735766926829,0.733,707.68,707.28,1.05687943]
[1735766926830,0.89225244,707.57,707.28,1.05687943]
[1735766927034,0.89225244,707.56,707.28,1.05687943]
[1735766927235,0.89225244,707.55,707.28,1.05687943]
[1735766927435,0.89225244,707.54,707.28,1.05687943]
[1735766927735,0.89225244,707.53,707.26,1.05687943]
[1735766927935,0.89225244,707.52,707.26,1.05687943]
[1735766928134,0.733,707.68,707.26,1.05687943]
[1735766928331,0.89199032,707.67,707.26,1.05687943]
[1735766928529,0.8919904,707.66,707.26,1.05687943]
[1735766928834,0.8919904,707.65,707.26,1.05687943]
[1735766929036,0.8919904,707.64,707.26,1.05687943]
[1735766929237,0.8919904,707.63,707.26,1.05687943]
[1735766929448,0.8919904,707.62,707.26,1.05687943]
[1735766929630,0.8919904,707.61,707.26,1.05687943]
[1735766929834,0.8919904,707.6,707.26,1.05687943]
[1735766930031,0.8919904,707.59,707.26,1.05687943]
[1735766930233,0.8919904,707.58,707.26,1.05687943]
[1735766930538,0.8919904,707.57,707.2,1.05687943]
[1735766930741,0.8919904,707.56,707.2,1.05687943]
[1735766930933,0.733,707.68,707.2,1.05687943]
[1735766930934,0.89162257,707.55,707.2,1.05687943]
[1735766931137,0.89162257,707.54,707.2,1.05687943]
[1735766931337,0.89162257,707.53,707.2,1.05687943]
[1735766931540,0.89162257,707.52,707.14,1.05687943]
[1735766931740,0.89162257,707.51,707.14,1.05687943]
[1735766932043,0.89162257,707.5,707.14,1.05687943]
[1735766932341,0.89162257,707.49,707.14,1.05687943]
[1735766932541,1.62462257,707.48,707.14,1.05687943]
[1735766932740,0.89162257,707.47,707.16,1.05687943]
[1735766932936,0.89162257,707.46,707.16,1.05687943]
[1735766933135,0.89162257,707.45,707.16,1.05687943]
[1735766933443,0.89162257,707.44,707.16,1.05687943]
[1735766933637,0.89162257,707.43,707.16,1.05687943]
[1735766933844,0.89162257,707.42,707.15,1.05687943]
[1735766934140,0.733,707.48,707.15,1.05687943]
[1735766934141,0.8914104,707.41,707.15,1.05687943]
[1735766934335,0.733,707.48,707.15,1.05687943]
[1735766934535,0.89134042,707.47,707.15,1.05687943]
[1735766934736,0.89134042,707.46,707.15,1.05687943]
[1735766934940,0.89134042,707.45,707.15,1.05687943]
[1735766935141,0.89134042,707.44,707.15,1.05687943]
[1735766935341,0.733,707.48,707.15,1.05687943]
[1735766935342,0.89134042,707.43,707.15,1.05687943]
[1735766935537,0.89134042,707.42,707.15,1.05687943]
[1735766935741,0.89134042,707.41,707.15,1.05687943]
[1735766935935,0.733,707.48,707.15,1.05687943]
[1735766936140,0.89138093,707.47,707.15,1.05687943]
[1735766936439,0.89138093,707.46,707.15,1.05687943]
[1735766936640,0.89138093,707.45,707.15,1.05687943]
[1735766936935,0.89138093,707.44,707.15,1.05687943]
[1735766937142,0.89138093,707.44,706.94,1.05687943]
[1735766937143,0.89135966,707.43,707.14,1.05687943]
[1735766937440,0.89135966,707.42,707.14,1.05687943]
[1735766937737,0.89133979,707.41,707.14,1.05687943]
[1735766937937,0.733,707.48,707.14,1.05687943]
[1735766938136,0.89133605,707.47,707.14,1.05687943]
[1735766938342,0.89133605,707.46,707.14,1.05687943]
[1735766938541,0.89133605,707.45,707.14,1.05687943]
[1735766938737,0.89133605,707.44,707.14,1.05687943]
[1735766938937,0.89133605,707.43,707.13,1.05687943]
[1735766939140,0.733,707.48,707.13,1.05687943]
[1735766939334,0.89138468,707.47,707.13,1.05687943]
[1735766939541,0.89138468,707.46,707.13,1.05687943]
[1735766939842,0.89138468,707.45,707.13,1.05687943]
[1735766940042,0.89138468,707.44,707.16,1.05687943]
[1735766940243,0.89138468,707.43,707.16,1.05687943]
[1735766940443,0.89136144,707.42,707.16,1.05687943]
[1735766940742,0.733,707.48,707.16,1.05687943]
[1735766940937,0.891347,707.47,707.16,1.05687943]
[1735766941136,0.891347,707.46,707.16,1.05687943]
[1735766941336,0.733,707.48,707.16,1.05687943]
[1735766941337,0.891347,707.45,707.16,1.05687943]
[1735766941538,0.891347,707.44,707.16,1.05687943]
[1735766941838,0.89138651,707.43,707.15,1.05687943]
[1735766942037,0.733,707.48,707.15,1.05687943]
[1735766942344,0.89145839,707.47,707.15,1.05687943]
[1735766942543,0.733,707.48,707.15,1.05687943]
[1735766943143,0.733,707.48,707.16,1.05687943]
[1735766944341,0.733,707.48,707.17,1.05687943]
[1735766946044,0.89145632,707.47,707.17,1.05687943]
[1735766946244,0.733,707.48,707.17,1.05687943]
[1735766946447,0.733,707.48,707.19,1.05687943]
[1735766946842,0.89150102,707.47,707.19,1.05687943]
[1735766947148,0.89150102,707.46,707.19,1.05687943]
[1735766947446,0.89150102,707.45,707.16,1.05687943]
[1735766947646,0.733,707.48,707.16,1.05687943]
[1735766947842,0.89142926,707.47,707.16,1.05687943]
[1735766948044,0.89142926,707.46,707.16,1.05687943]
[1735766948245,0.733,707.48,707.16,1.05687943]
[1735766948246,0.89142926,707.45,707.16,1.05687943]
[1735766948542,0.733,707.48,707.16,1.05687943]
[1735766948746,0.89143758,707.47,707.16,1.05687943]
[1735766948948,0.89143758,707.46,707.16,1.05687943]
[1735766949149,0.733,707.48,707.16,1.05687943]
[1735766949351,0.89140763,707.47,707.16,1.05687943]
[1735766949647,0.733,707.48,707.16,1.05687943]
[1735766949648,0.89140763,707.46,707.16,1.05687943]
[1735766949848,0.733,707.48,706.84,1.05687943]
[1735766949849,0.733,707.48,707.17,1.05687943]
[1735766950044,0.89138958,707.47,707.17,1.05687943]
[1735766950249,0.89138958,707.46,707.17,1.05687943]
[1735766950445,0.733,707.48,707.17,1.05687943]
[1735766950751,0.89143435,707.47,707.17,1.05687943]
[1735766950946,0.733,707.48,707.17,1.05687943]
[1735766951747,0.89146812,707.47,707.17,1.05687943]
[1735766951952,0.733,707.48,707.17,1.05687943]
[1735766952151,0.89144017,707.47,707.17,1.05687943]
[1735766952353,0.733,707.48,707.17,1.05687943]
[1735766952553,0.89145821,707.47,707.24,1.05687943]
[1735766952753,0.89145821,707.46,707.24,1.05687943]
[1735766953053,0.733,707.48,707.24,1.05687943]
[1735766953352,0.89144727,707.47,707.24,1.05687943]
[1735766953547,0.89144727,707.46,707.24,1.05687943]
[1735766953755,0.733,707.48,707.23,1.05687943]
[1735766953951,0.89143359,707.47,707.23,1.05687943]
[1735766954147,0.89143359,707.46,707.23,1.05687943]
[1735766954354,0.733,707.48,707.23,1.05687943]
[1735766954549,0.89144815,707.47,707.23,1.05687943]
[1735766954754,0.89144815,707.46,707.24,1.05687943]
[1735766954955,0.733,707.48,707.24,1.05687943]
[1735766955255,0.8914717,707.47,707.24,1.05687943]
[1735766955555,0.8914717,707.46,707.24,1.05687943]
[1735766955750,0.733,707.48,707.24,1.05687943]
[1735766955948,0.89146372,707.47,707.24,1.05687943]
[1735766956154,0.89146372,707.46,707.24,1.05687943]
[1735766956352,0.733,707.48,707.24,1.05687943]
[1735766956557,0.89147324,707.47,707.24,1.05687943]
[1735766956752,0.733,707.48,707.24,1.05687943]
[1735766956958,0.89146707,707.47,707.24,1.05687943]
[1735766957157,0.733,707.48,707.24,1.05687943]
[1735766957355,0.8914783,707.47,707.24,1.05687943]
[1735766957558,0.733,707.48,707.24,1.05687943]
[1735766957758,0.89146563,707.47,707.24,1.05687943]
[1735766957959,0.733,707.48,707.24,1.05687943]
[1735766958161,0.89145734,707.47,707.24,1.05687943]
[1735766958357,0.733,707.48,707.24,1.05687943]
[1735766958559,0.89146511,707.47,707.26,1.05687943]
[1735766958765,0.733,707.48,707.26,1.05687943]
[1735766958966,0.89145399,707.47,707.26,1.05687943]
[1735766959161,0.89147023,707.46,707.26,1.05687943]
[1735766959367,0.89147023,707.45,707.26,1.05687943]
[1735766959566,0.733,707.48,707.26,1.05687943]
[1735766959766,0.89145452,707.47,707.27,1.05687943]
[1735766959966,1.47627566,707.8,707.27,1.05687943]
[1735766960167,0.89145893,707.79,707.27,1.05687943]
[1735766960368,0.89145893,707.78,707.27,1.05687943]
[1735766960571,0.89145893,707.77,707.27,1.05687943]
[1735766960869,1.62445893,707.76,707.27,1.05687943]
[1735766961072,0.89145893,707.75,707.27,1.05687943]
[1735766961270,0.89145893,707.74,707.27,1.05687943]
[1735766961468,0.89145893,707.73,707.27,1.05687943]
[1735766961664,0.89145893,707.72,707.27,1.05687943]
[1735766961970,0.89145893,707.71,707.27,1.05687943]
[1735766962170,0.89145893,707.7,707.27,1.05687943]
[1735766962370,0.89145893,707.69,707.27,1.05687943]
[1735766962572,0.89145893,707.68,707.27,1.05687943]
[1735766962869,0.89136036,707.67,707.27,1.05687943]
[1735766963071,0.89136036,707.66,707.27,1.05687943]
[1735766963271,0.89136036,707.66,707.09,1.05687943]
[1735766963272,0.89136036,707.65,707.23,1.05687943]
[1735766963473,0.89136036,707.64,707.23,1.05687943]
[1735766963772,0.89136036,707.63,707.23,1.05687943]
[1735766963973,0.89136036,707.62,707.23,1.05687943]
[1735766964272,0.89136036,707.61,707.23,1.05687943]
[1735766964472,0.89136036,707.6,707.23,1.05687943]
[1735766964672,0.89136036,707.59,707.25,1.05687943]
[1735766964973,0.89136036,707.58,707.25,1.05687943]
[1735766965169,0.89136036,707.57,707.25,1.05687943]
[1735766965365,0.89136036,707.56,707.25,1.05687943]
[1735766965570,1.47617129,707.72,707.25,1.05687943]
[1735766965571,0.89136036,707.55,707.25,1.05687943]
[1735766965770,1.47617129,707.72,707.23,1.05687943]
[1735766965771,0.89136036,707.54,707.23,1.05687943]
[1735766965971,0.89131924,707.53,707.23,1.05687943]
[1735766966271,0.89131924,707.52,707.23,1.05687943]
[1735766966467,0.89131924,707.51,707.23,1.05687943]
[1735766966672,0.89131924,707.5,707.23,1.05687943]
[1735766966873,1.47617129,707.72,707.18,1.05687943]
[1735766966874,0.89131924,707.49,707.18,1.05687943]
[1735766967072,0.89131924,707.48,707.18,1.05687943]
[1735766967374,0.89131924,707.47,707.18,1.05687943]
[1735766967567,0.89131924,707.46,707.18,1.05687943]
[1735766967770,0.89131924,707.45,707.18,1.05687943]
[1735766968069,0.89131924,707.44,707.12,1.05687943]
[1735766968272,0.89131924,707.43,707.12,1.05687943]
[1735766968473,1.47617129,707.72,707.12,1.05687943]
[1735766968773,0.8911202,707.71,707.12,1.05687943]
[1735766968975,0.8911202,707.7,707.14,1.05687943]
[1735766969275,0.8911202,707.69,707.14,1.05687943]
[1735766969472,0.8911202,707.68,707.14,1.05687943]
[1735766969665,1.47617129,707.72,707.14,1.05687943]
[1735766969871,0.89124552,707.71,707.14,1.05687943]
[1735766970072,0.89124552,707.7,707.14,1.05687943]
[1735766970272,0.89124552,707.69,707.14,1.05687943]
[1735766970474,0.89124552,707.68,707.18,1.05687943]
[1735766970675,0.89124552,707.67,707.18,1.05687943]
[1735766970976,0.89124552,707.66,707.18,1.05687943]
[1735766971174,0.89124552,707.65,707.18,1.05687943]
[1735766971375,0.89124552,707.64,707.18,1.05687943]
[1735766971576,0.89124552,707.63,707.15,1.05687943]
[1735766971777,0.89124552,707.62,707.15,1.05687943]
[1735766971969,0.89124552,707.61,707.15,1.05687943]
[1735766972171,0.89124552,707.6,707.15,1.05687943]
[1735766972476,0.89124552,707.59,707.15,1.05687943]
[1735766972677,0.89124552,707.58,707.15,1.05687943]
[1735766972882,0.89124552,707.57,707.15,1.05687943]
[1735766973072,0.89124552,707.56,707.15,1.05687943]
[1735766973278,0.89124552,707.55,707.15,1.05687943]
[1735766973476,0.89124552,707.54,707.15,1.05687943]
[1735766973678,0.89124552,707.53,707.15,1.05687943]
[1735766973879,0.89124552,707.52,707.15,1.05687943]
[1735766974079,0.89124552,707.51,707.15,1.05687943]
[1735766974278,0.89124552,707.5,707.15,1.05687943]
[1735766974484,0.89124552,707.49,707.15,1.05687943]
[1735766974784,0.733,707.76,707.19,1.05687943]
[1735766974980,0.89144075,707.75,707.19,1.05687943]
[1735766975179,0.89144075,707.74,707.19,1.05687943]
[1735766975379,0.89144075,707.73,707.19,1.05687943]
[1735766975582,0.89144075,707.73,706.46,2.1577955]
[1735766975583,0.89144075,707.72,707.22,1.05687943]
[1735766975778,0.733,707.76,707.22,1.05687943]
[1735766975984,0.89139443,707.75,707.22,1.05687943]
[1735766976184,0.89139443,707.74,707.22,1.05687943]
[1735766976377,0.89139443,707.73,707.22,1.05687943]
[1735766976585,0.733,707.76,707.22,1.05687943]
[1735766976586,0.89139443,707.72,707.22,1.05687943]
[1735766976783,0.733,707.76,707.22,1.05687943]
[1735766976784,0.89139443,707.71,707.22,1.05687943]
[1735766976982,0.89139443,707.7,707.22,1.05687943]
[1735766977179,0.89139443,707.69,707.22,1.05687943]
[1735766977384,0.89139443,707.68,707.22,1.05687943]
[1735766977580,0.89139443,707.67,707.27,1.05687943]
[1735766977784,0.733,707.76,707.27,1.05687943]
[1735766977785,0.89139443,707.66,707.27,1.05687943]
[1735766977979,0.89139443,707.65,707.27,1.05687943]
[1735766978178,0.89139443,707.64,707.27,1.05687943]
[1735766978379,0.89139443,707.63,707.27,1.05687943]
[1735766978684,0.89139443,707.62,707.27,1.05687943]
[1735766978884,0.89139443,707.61,707.27,1.05687943]
[1735766979186,0.89139443,707.6,707.28,1.05687943]
[1735766979380,0.89139443,707.59,707.28,1.05687943]
[1735766979582,0.89139443,707.58,707.28,1.05687943]
[1735766979779,0.89139443,707.57,707.28,1.05687943]
[1735766979982,1.47626,707.82,707.28,1.05687943]
[1735766979983,0.89139443,707.56,707.28,1.05687943]
[1735766980183,0.89139443,707.55,707.28,1.05687943]
[1735766980383,0.89139443,707.54,707.27,1.05687943]
[1735766980584,0.89139443,707.53,707.27,1.05687943]
[1735766980784,0.89139443,707.52,707.27,1.05687943]
[1735766980985,0.89139443,707.51,707.27,1.05687943]
[1735766981285,0.89139443,707.5,707.31,1.05687943]
[1735766981485,0.89139443,707.49,707.31,1.05687943]
[1735766981683,0.733,707.51,707.31,1.05687943]
[1735766982081,0.89152051,707.5,707.31,1.05687943]
[1735766982281,0.733,707.51,707.31,1.05687943]
[1735766982479,0.89147818,707.5,707.31,1.05687943]
[1735766982684,0.733,707.51,707.27,1.05687943]
[1735766984184,0.733,707.51,706.62,2.1577955]
[1735766984185,0.733,707.51,707.28,1.05687943]
[1735766984984,0.733,707.51,707.26,1.05687943]
[1735766988481,0.733,707.51,707.25,1.05687943]
[1735766991885,0.733,707.51,707.24,1.05687943]
[1735766993088,0.733,707.51,707.33,1.05687943]
[1735766995383,0.733,707.51,707.32,1.05687943]
[1735767000490,0.733,707.51,707.31,1.05687943]
[1735767001491,0.733,707.51,706.74,2.1577955]
[1735767001492,0.733,707.51,707.19,1.05687943]
[1735767002590,0.733,707.51,707.22,1.05687943]
[1735767003793,0.733,707.51,707.2,1.05687943]
[1735767005092,1.47607215,707.9,707.2,1.05687943]
[1735767005293,0.89142886,707.89,707.2,1.05687943]
[1735767005494,0.89142554,707.88,707.2,1.05687943]
[1735767005695,0.89142554,707.87,707.2,1.05687943]
[1735767005993,0.89142554,707.86,707.2,1.05687943]
[1735767006194,1.62442554,707.85,707.2,1.05687943]
[1735767006393,0.89142554,707.84,707.2,1.05687943]
[1735767006589,0.89142554,707.83,707.2,1.05687943]
[1735767006792,0.89142554,707.82,707.2,1.05687943]
[1735767006991,0.89142554,707.81,707.2,1.05687943]
[1735767007193,0.89142554,707.8,707.2,1.05687943]
[1735767007394,0.89142554,707.79,707.2,1.05687943]
[1735767007594,0.89142554,707.78,707.2,1.05687943]
[1735767007792,0.89142554,707.77,707.2,1.05687943]
[1735767007995,0.89142554,707.76,707.2,1.05687943]
[1735767008194,0.89142554,707.75,707.2,1.05687943]
[1735767008394,0.89142554,707.74,707.2,1.05687943]
[1735767008597,0.89142554,707.73,707.2,1.05687943]
[1735767008795,0.89142554,707.72,707.2,1.05687943]
[1735767008995,0.89142554,707.71,707.2,1.05687943]
[1735767009195,0.89142554,707.7,707.2,1.05687943]
[1735767009495,0.89142554,707.69,707.21,1.05687943]
[1735767009690,0.89142554,707.68,707.21,1.05687943]
[1735767009894,0.89142554,707.67,707.21,1.05687943]
[1735767010095,0.89142554,707.66,707.21,1.05687943]
[1735767010295,0.89142554,707.66,706.4,2.1577955]
[1735767010296,0.89142554,707.65,707.25,1.05687943]
[1735767010496,0.89142554,707.64,707.25,1.05687943]
[1735767010697,0.89142554,707.63,707.25,1.05687943]
[1735767010891,0.89142554,707.62,707.25,1.05687943]
[1735767011098,0.89142554,707.61,707.31,1.05687943]
[1735767011395,0.733,707.85,707.31,1.05687943]
[1735767011597,0.89114545,707.84,707.31,1.05687943]
[1735767011792,0.89114545,707.83,707.31,1.05687943]
[1735767011993,0.89117911,707.82,707.31,1.05687943]